fUSD/lending_fUSD_20250814
["ID","MTS","AMOUNT","RATE_DAILY","PERIOD"]
[379206779,1755186631914,-1000.0,0.00020058,2]
[379206780,1755186631923,-1140.79,0.00020058,2]
[379206781,1755186631932,-1852.42,0.00020093,2]
[379206782,1755186631942,-200.0,0.00020105,2]
[379206783,1755186631952,-14114.62,0.00020126,2]
[379206784,1755186631962,-8945.88,0.00020141,2]
[379206785,1755186631973,-255.11,0.00020171,2]
[379206786,1755186631990,-2751.0,0.000202,2]
[379206787,1755186632005,-200.0,0.00020208,2]
[379206788,1755186632018,-600.0,0.00020208,2]
[379206789,1755186632035,-600.0,0.00020208,2]
[379206790,1755186632050,-500.0,0.00020208,2]
[379206791,1755186632066,-600.0,0.00020208,2]
[379206792,1755186632080,-600.0,0.00020208,2]
[379206793,1755186632094,-232.38972457,0.00020208,2]
[379206794,1755186632109,-500.0,0.00020208,2]
[379206796,1755186632124,-500.0,0.00020208,2]
[379206800,1755186632139,-500.0,0.00020208,2]
[379206803,1755186632155,-500.0,0.00020208,2]
[379206806,1755186632170,-500.0,0.00020208,2]
[379206808,1755186632186,-500.0,0.00020208,2]
[379206809,1755186632201,-500.0,0.00020208,2]
[379206810,1755186632216,-500.0,0.00020208,2]
[379206811,1755186632233,-500.0,0.00020208,2]
[379206812,1755186632247,-500.0,0.00020208,2]
[379206813,1755186632260,-500.0,0.00020208,2]
[379206814,1755186632272,-151.0,0.00020208,2]
[379206815,1755186632287,-151.0,0.00020208,2]
[379206816,1755186632302,-151.0,0.00020208,2]
[379206817,1755186632314,-151.0,0.00020208,2]
[379206818,1755186632328,-151.0,0.00020208,2]
[379206819,1755186632342,-151.0,0.00020208,2]
[379206820,1755186632353,-151.0,0.00020208,2]
[379206821,1755186632369,-151.0,0.00020208,2]
[379206822,1755186632397,-151.0,0.00020208,2]
[379206823,1755186632410,-151.0,0.00020208,2]
[379206824,1755186632425,-151.0,0.00020208,2]
[379206825,1755186632439,-151.0,0.00020208,2]
[379206826,1755186632453,-156.587,0.00020208,2]
[379206827,1755186632468,-23408.24657227,0.00020221,2]
[379206828,1755186632483,-3617.22,0.00020253,2]
[379206829,1755186632498,-500.0,0.00020263,2]
[379206830,1755186632512,-850.78,0.00020312,2]
[379206831,1755186632526,-500.0,0.00020318,2]
[379206832,1755186632539,-228.5,0.0002034,2]
[379206833,1755186632554,-500.0,0.00020373,2]
[379206834,1755186632567,-500.0,0.00020428,2]
[379206835,1755186632581,-500.0,0.00020483,2]
[379206836,1755186632595,-500.0,0.00020538,2]
[379206837,1755186632609,-155.31,0.00020564,2]
[379206838,1755186632624,-250.0,0.00020593,2]
[379206839,1755186632638,-500.0,0.00020593,2]
[379206840,1755186632652,-500.0,0.00020593,2]
[379206841,1755186632665,-190.05,0.00020641,2]
[379206842,1755186632678,-1000.0,0.00020648,2]
[379206843,1755186632692,-300.0,0.00020648,2]
[379206844,1755186632706,-500.0,0.00020648,2]
[379206845,1755186632720,-250.0,0.00020648,2]
[379206846,1755186632734,-1000.0,0.00020648,2]
[379206847,1755186632747,-500.0,0.00020648,2]
[379206848,1755186632762,-500.0,0.00020703,2]
[379206849,1755186632776,-151.0,0.00020756,2]
[379206850,1755186632790,-500.0,0.00020758,2]
[379206851,1755186632804,-155.51,0.00020885,2]
[379206852,1755186632817,-1084.18961333,0.00020886,2]
[379206853,1755186632831,-3342.54,0.00021093,2]
[379206854,1755186632844,-3342.54,0.00021104,2]
[379206855,1755186632857,-3342.54,0.00021115,2]
[379206856,1755186632870,-3342.54,0.00021126,2]
[379206857,1755186632883,-3342.54,0.00021138,2]
[379206858,1755186632896,-3342.54,0.00021149,2]
[379206859,1755186632909,-3342.54,0.0002116,2]
[379206860,1755186632922,-3342.54,0.00021171,2]
[379206861,1755186632935,-3342.54,0.00021182,2]
[379206862,1755186632948,-3342.54,0.00021193,2]
[379206863,1755186632961,-3342.54,0.00021204,2]
[379206864,1755186632974,-3342.54,0.00021215,2]
[379206865,1755186632987,-3342.54,0.00021226,2]
[379206866,1755186633000,-3342.54,0.00021237,2]
[379206867,1755186633013,-3342.54,0.00021249,2]
[379206868,1755186633026,-3342.54,0.0002126,2]
[379206869,1755186633040,-3617.22,0.00021266,2]
[379206870,1755186633054,-3342.54,0.00021271,2]
[379206871,1755186633067,-3342.54,0.00021282,2]
[379206872,1755186633081,-3342.54,0.00021293,2]
[379206873,1755186633094,-3342.54,0.00021304,2]
[379206874,1755186633107,-420.0,0.00021379,2]
[379206875,1755186633120,-289.77,0.00021425,2]
[379206876,1755186633135,-1680.0,0.00021482,2]
[379206877,1755186633149,-161.0,0.00021507,2]
[379206878,1755186633162,-250.0,0.00021866,2]
[379206879,1755186633176,-963.94287428,0.000219,2]
[379206880,1755186633190,-5000.0,0.00021918,2]
[379206881,1755186633203,-666.0,0.00021918,3]
[379206882,1755186633216,-203.57593939,0.00021918,2]
[379206883,1755186633229,-10031.52,0.00021922,2]
[379206884,1755186633244,-27240.2170722,0.00021953,2]
[379206885,1755186633261,-1456.15164182,0.00021953,2]
[379206886,1755186633278,-63541.07521665,0.00021953,2]
[379206887,1755186633291,-490.4,0.00022,2]
[379206888,1755186633305,-170.0,0.00022004,7]
[379206889,1755186633319,-3617.22,0.00022279,2]
[379206890,1755186633332,-200.0,0.00022377,2]
[379206891,1755186633345,-106575.1984232,0.00022461,2]
[379206892,1755186633358,-274.77000695,0.00022465,2]
[379206893,1755186633371,-1000.0,0.00022565,2]
[379206894,1755186633384,-3426.40078842,0.00022785,2]
[379206895,1755186633398,-289.77,0.00022795,2]
[379206896,1755186633412,-207.4,0.00022947,2]
[379206897,1755186633425,-575.0,0.00023,2]
[379206898,1755186633439,-6740.91327491,0.00023025,2]
[379206899,1755186633453,-490.81,0.00023032,2]
[379206900,1755186633470,-274.77000692,0.00023048,2]
[379206901,1755186633484,-844.08,0.00023073,2]
[379206902,1755186633497,-775.52,0.00023074,2]
[379206903,1755186633512,-244.09,0.00023074,2]
[379206904,1755186633526,-963.94287424,0.00023089,2]
[379206905,1755186633541,-375.64,0.00023122,2]
[379206906,1755186633555,-6166.59,0.0002314,2]
[379206907,1755186633569,-150.0,0.0002314,2]
[379206908,1755186633583,-150.0,0.00023192,2]
[379206909,1755186633596,-2657.63,0.00023256,2]
[379206910,1755186633610,-587.0,0.00023288,2]
[379206911,1755186633623,-3617.22,0.00023291,2]
[379206912,1755186633637,-14455.78,0.00023301,2]
[379206913,1755186633651,-2351.0,0.00023513,2]
[379206914,1755186633665,-575.0,0.00023576,2]
[379206915,1755186633678,-274.77000692,0.0002363,2]
[379206916,1755186633692,-1000.0,0.00023726,2]
[379206917,1755186633705,-1000.0,0.00023728,2]
[379206918,1755186633719,-228.5,0.00023765,2]
[379206919,1755186633732,-3532.13,0.00023893,2]
[379206920,1755186633745,-155.31,0.00023958,2]
[379206921,1755186633758,-180.76,0.00024126,2]
[379206922,1755186633773,-575.0,0.00024152,3]
[379206923,1755186633786,-490.4,0.00024178,2]
[379206924,1755186633800,-274.77000692,0.00024213,2]
[379206925,1755186633814,-963.94287424,0.00024278,3]
[379206926,1755186633827,-3617.22,0.00024304,2]
[379206927,1755186633841,-244.09,0.00024356,2]
[379206928,1755186633854,-155.51,0.00024448,2]
[379206929,1755186633869,-178.66,0.00024557,2]
[379206930,1755186633884,-972.7,0.00024568,2]
[379206931,1755186633898,-1000.0,0.00024616,2]
[379206932,1755186633911,-2000.0,0.00024658,15]
[379206933,1755186633926,-1000.0,0.00024658,2]
[379206934,1755186633940,-575.0,0.00024727,3]
[379206935,1755186633954,-274.77000692,0.00024795,2]
[379206936,1755186633968,-251013.191054,0.000248,2]
[379206937,1755186633981,-238.75410162,0.000248,2]
[379206938,1755186633996,-250.0,0.00024802,2]
[379206939,1755186634008,-400.0,0.000249,9]
[379206940,1755186634024,-106583.342909,0.000249,2]
[379206941,1755186634037,-11842.5936565,0.00024966,2]
[379206942,1755186634050,-150.0,0.00024999,2]
[379206943,1755186634063,-157.63307212,0.00025,2]
[379206944,1755186634077,-476.12311933,0.00025,10]
[379206945,1755186634090,-14765.4818267,0.00025062,2]
[379206946,1755186634103,-1000.0,0.00025072,2]
[379206947,1755186634117,-263.04439927,0.00025113,2]
[379206948,1755186634130,-11842.5936565,0.00025175,2]
[379206949,1755186634143,-155.49,0.00025216,2]
[379206950,1755186634157,-3180.12,0.00025219,2]
[379206951,1755186634170,-308.50886334,0.00025227,2]
[379206952,1755186634183,-575.0,0.00025303,4]
[379206953,1755186634196,-353.97332741,0.00025341,2]
[379206954,1755186634209,-823.0,0.00025368,2]
[379206955,1755186634222,-274.77000692,0.00025378,2]
[379206956,1755186634235,-238.75410162,0.00025408,2]
[379206957,1755186634248,-399.43779149,0.00025455,2]
[379206958,1755186634262,-963.94287424,0.00025467,7]
[379206959,1755186634276,-1000.0,0.00025505,2]
[379206960,1755186634289,-444.90225556,0.00025569,2]
[379206961,1755186634302,-14765.4818267,0.00025571,2]
[379206962,1755186634315,-11842.5936565,0.00025571,2]
[379206963,1755186634328,-10936.0,0.000256,2]
[379206964,1755186634340,-244.09,0.00025638,2]
[379206965,1755186634353,-490.36671963,0.00025683,2]
[379206966,1755186634365,-215.0738,0.00025686,2]
[379206967,1755186634378,-3292.0,0.00025737,2]
[379206968,1755186634391,-14765.4818267,0.00025737,2]
[379206969,1755186634404,-11842.5936565,0.00025737,2]
[379206970,1755186634417,-21208.15192977,0.00025747,2]
[379206971,1755186634431,-535.8311837,0.00025797,2]
[379206972,1755186634445,-575.0,0.00025879,4]
[379206973,1755186634457,-155.51,0.00025896,2]
[379206974,1755186634474,-900.0,0.000259,9]
[379206975,1755186634487,-581.29564777,0.0002591,2]
[379206976,1755186634500,-274.77000692,0.0002596,2]
[379206977,1755186634516,-5513.0,0.00026,3]
[379206978,1755186634530,-238.75410162,0.00026015,2]
[379206979,1755186634545,-626.76011184,0.00026024,2]
[379206980,1755186634557,-178.66,0.0002604,2]
[379206981,1755186634570,-44296.44548,0.00026049,2]
[379206982,1755186634583,-35527.7809696,0.00026049,2]
[379206983,1755186634597,-35527.7809696,0.0002606,2]
[379206984,1755186634609,-200.0,0.0002607,2]
[379206985,1755186634622,-300.0,0.0002607,2]
[379206986,1755186634635,-200.0,0.0002607,2]
[379206987,1755186634648,-200.0,0.0002607,2]
[379206988,1755186634661,-200.0,0.0002607,2]
[379206989,1755186634674,-200.0,0.0002607,2]
[379206990,1755186634687,-600.0,0.0002607,2]
[379206991,1755186634700,-200.0,0.0002607,2]
[379206992,1755186634713,-200.0,0.0002607,2]
[379206993,1755186634726,-200.0,0.0002607,2]
[379206994,1755186634739,-160.0,0.0002607,2]
[379206995,1755186634752,-200.0,0.0002607,2]
[379206996,1755186634765,-200.0,0.0002607,2]
[379206997,1755186634779,-200.0,0.0002607,2]
[379206998,1755186634791,-250.0,0.0002607,2]
[379206999,1755186634803,-200.0,0.0002607,2]
[379207000,1755186634816,-200.0,0.0002607,2]
[379207001,1755186634829,-200.0,0.0002607,2]
[379207002,1755186634842,-250.0,0.0002607,2]
[379207003,1755186634854,-214.79029752,0.0002607,2]
[379207004,1755186634867,-250.0,0.0002607,2]
[379207005,1755186634880,-250.0,0.0002607,2]
[379207006,1755186634893,-250.0,0.0002607,2]
[379207007,1755186634905,-250.0,0.0002607,2]
[379207008,1755186634918,-250.0,0.0002607,2]
[379207009,1755186634930,-2500.0,0.0002607,2]
[379207010,1755186634943,-250.0,0.0002607,2]
[379207011,1755186634956,-2500.0,0.0002607,2]
[379207012,1755186634968,-250.0,0.0002607,2]
[379207013,1755186634981,-1498.81287235,0.0002607,2]
[379207014,1755186634993,-250.0,0.0002607,2]
[379207015,1755186635005,-250.0,0.0002607,2]
[379207016,1755186635019,-3000.0,0.0002607,2]
[379207017,1755186635033,-3000.0,0.0002607,2]
[379207018,1755186635045,-9274.81107495,0.0002607,2]
[379207019,1755186635058,-3000.0,0.0002607,2]
[379207020,1755186635070,-500.0,0.0002607,2]
[379207021,1755186635082,-2000.0,0.0002607,2]
[379207022,1755186635095,-151.0,0.0002607,2]
[379207023,1755186635108,-500.0,0.0002607,2]
[379207024,1755186635121,-500.0,0.0002607,2]
[379207025,1755186635134,-500.0,0.0002607,2]
[379207026,1755186635147,-500.0,0.0002607,2]
[379207027,1755186635160,-277.35679052,0.0002607,2]
[379207028,1755186635173,-500.0,0.0002607,2]
[379207029,1755186635186,-500.0,0.0002607,2]
[379207030,1755186635198,-3000.0,0.0002607,2]
[379207031,1755186635211,-500.0,0.0002607,2]
[379207032,1755186635224,-500.0,0.0002607,2]
[379207033,1755186635237,-500.0,0.0002607,2]
[379207034,1755186635250,-500.0,0.0002607,2]
[379207035,1755186635263,-500.0,0.0002607,2]
[379207036,1755186635276,-500.0,0.0002607,2]
[379207037,1755186635288,-151.0,0.0002607,2]
[379207038,1755186635301,-151.0,0.0002607,2]
[379207039,1755186635314,-500.0,0.0002607,2]
[379207040,1755186635327,-151.0,0.0002607,2]
[379207041,1755186635340,-500.0,0.0002607,2]
[379207042,1755186635352,-151.0,0.0002607,2]
[379207043,1755186635365,-500.0,0.0002607,2]
[379207044,1755186635377,-500.0,0.0002607,2]
[379207045,1755186635391,-209.40437684,0.0002607,2]
[379207046,1755186635404,-151.0,0.0002607,2]
[379207047,1755186635417,-500.0,0.0002607,2]
[379207048,1755186635430,-151.0,0.0002607,2]
[379207049,1755186635442,-500.0,0.0002607,2]
[379207050,1755186635455,-151.0,0.0002607,2]
[379207051,1755186635470,-500.0,0.0002607,2]
[379207052,1755186635483,-500.0,0.0002607,2]
[379207053,1755186635497,-151.0,0.0002607,2]
[379207054,1755186635511,-500.0,0.0002607,2]
[379207055,1755186635525,-151.0,0.0002607,2]
[379207056,1755186635538,-151.0,0.0002607,2]
[379207057,1755186635551,-151.0,0.0002607,2]
[379207058,1755186635564,-151.0,0.0002607,2]
[379207059,1755186635576,-151.0,0.0002607,2]
[379207060,1755186635589,-1000.0,0.0002607,2]
[379207061,1755186635601,-151.0,0.0002607,2]
[379207062,1755186635614,-1000.0,0.0002607,2]
[379207063,1755186635627,-151.0,0.0002607,2]
[379207064,1755186635639,-151.0,0.0002607,2]
[379207065,1755186635652,-1000.0,0.0002607,2]
[379207066,1755186635665,-500.0,0.0002607,2]
[379207067,1755186635677,-747.6894304,0.0002607,2]
[379207068,1755186635691,-500.0,0.0002607,2]
[379207069,1755186635704,-500.0,0.0002607,2]
[379207070,1755186635716,-500.0,0.0002607,2]
[379207071,1755186635729,-500.0,0.0002607,2]
[379207072,1755186635742,-500.0,0.0002607,2]
[379207073,1755186635755,-500.0,0.0002607,2]
[379207074,1755186635767,-151.0,0.0002607,2]
[379207075,1755186635780,-500.0,0.0002607,2]
[379207076,1755186635793,-500.0,0.0002607,2]
[379207077,1755186635806,-500.0,0.0002607,2]
[379207078,1755186635819,-500.0,0.0002607,2]
[379207079,1755186635832,-500.0,0.0002607,2]
[379207080,1755186635845,-500.0,0.0002607,2]
[379207081,1755186635858,-500.0,0.0002607,2]
[379207082,1755186635871,-500.0,0.0002607,2]
[379207083,1755186635884,-500.0,0.0002607,2]
[379207084,1755186635896,-500.0,0.0002607,2]
[379207085,1755186635909,-500.0,0.0002607,2]
[379207086,1755186635922,-500.0,0.0002607,2]
[379207087,1755186635936,-500.0,0.0002607,2]
[379207088,1755186635949,-500.0,0.0002607,2]
[379207089,1755186635962,-500.0,0.0002607,2]
[379207090,1755186635976,-500.0,0.0002607,2]
[379207091,1755186635987,-500.0,0.0002607,2]
[379207092,1755186635997,-500.0,0.0002607,2]
[379207093,1755186636006,-500.0,0.0002607,2]
[379207094,1755186636016,-500.0,0.0002607,2]
[379207095,1755186636026,-500.0,0.0002607,2]
[379207096,1755186636035,-500.0,0.0002607,2]
[379207097,1755186636919,-500.0,0.0002607,2]
[379207098,1755186636951,-500.0,0.0002607,2]
[379207099,1755186636978,-500.0,0.0002607,2]
[379207100,1755186637001,-500.0,0.0002607,2]
[379207101,1755186637028,-4963.69336765,0.00026115,2]
[379207110,1755186638020,-712.75251739,0.00026115,2]
[379207113,1755186638033,-2096.09397841,0.00026115,2]
[379207115,1755186638044,-4070.05379305,0.00026115,2]
[379207117,1755186638054,-2983.05328303,0.00026125,2]
[379207119,1755186638065,-6634.9258017,0.00026125,2]
[379207121,1755186638075,-672.22457592,0.00026138,2]
[379207123,1755186638084,-3707.51263752,0.0002618,2]
[379207126,1755186638096,-872.03069731,0.0002618,2]
[379207128,1755186638107,-1864.13399996,0.0002618,2]
[379207130,1755186638183,-3530.16697607,0.0002618,2]
[379207131,1755186638193,-23685.1873131,0.00026185,2]
[379207132,1755186638203,-1647.93045109,0.00026235,2]
[379207133,1755186638213,-717.68903999,0.00026252,2]
[379207134,1755186638223,-11842.5936565,0.00026299,2]
[379207135,1755186638233,-63.62755829,0.00026309,2]
[379207136,1755186638245,-472.64,0.00026309,2]
[379207137,1755186638256,-11960.4603018,0.00026309,2]
[379207138,1755186638316,-8711.42406968,0.00026309,2]
[379207139,1755186638327,-490.4,0.00026355,7]
[379207140,1755186638336,-763.15350406,0.00026366,2]
[379207141,1755186638346,-1000.0,0.00026395,2]
[379207142,1755186638355,-575.0,0.00026455,5]
[379207143,1755186638366,-808.61796813,0.0002648,2]
[379207144,1755186638376,-5643.88,0.00026485,2]
[379207145,1755186638386,-11842.5936565,0.0002649,2]
[379207146,1755186638395,-5513.0,0.000265,5]
[379207148,1755186638405,-274.77000692,0.00026543,2]
[379207150,1755186638415,-2045.91,0.00026591,2]
[379207152,1755186638425,-2593.12,0.00026591,2]
[379207154,1755186638434,-3475.02995796,0.00026591,2]
[379207156,1755186638450,-20631.45868954,0.00026591,2]
[379207160,1755186638478,-3224.73735165,0.00026591,2]
[379207163,1755186638492,-1305.0,0.00026591,2]
[379207184,1755186641149,-167.17,0.00018684,2]
[379207185,1755186641160,-819.16517555,0.00022361,2]
[379207186,1755186641170,-500.04852177,0.00024309,2]
[379207187,1755186641180,-183.09036325,0.00024309,2]
[379207188,1755186641191,-178.42068214,0.00024309,2]
[379207189,1755186641201,-211.26031125,0.00024309,2]
[379207190,1755186641211,-1363.76400085,0.00026591,2]
[379207191,1755186641221,-1188.38094519,0.00026591,2]
[379207192,1755186641233,-920.9,0.00026591,2]
[379207193,1755186641276,-9852.17905481,0.00026591,2]
[379207194,1755186641289,-854.0824322,0.00026594,2]
[379207195,1755186641300,-600.0,0.00026618,2]
[379207196,1755186641310,-151.0,0.00026618,2]
[379207197,1755186641321,-151.0,0.00026618,2]
[379207198,1755186641332,-151.0,0.00026618,2]
[379207199,1755186641342,-963.94287424,0.00026656,10]
[379207200,1755186641352,-1300.0,0.000267,9]
[379207201,1755186641363,-899.54689627,0.00026708,2]
[379207202,1755186641373,-1800.0,0.000268,9]
[379207203,1755186641384,-11842.5936565,0.00026809,2]
[379207204,1755186641394,-945.01136034,0.00026821,2]
[379207205,1755186641404,-724.07815596,0.00026823,2]
[379207206,1755186641414,-7807.87857353,0.00026829,2]
[379207207,1755186641451,-4034.71508297,0.00026829,2]
[379207208,1755186641464,-2840.3,0.00026849,14]
[379207209,1755186641475,-11842.5936565,0.00026862,2]
[379207210,1755186641484,-21208.15192977,0.00026872,2]
[379207211,1755186641495,-1031.0,0.000269,2]
[379207212,1755186641506,-2200.0,0.000269,9]
[379207213,1755186641516,-2740.0,0.00026908,2]
[379207214,1755186641527,-2740.0,0.00026915,2]
[379207215,1755186641538,-244.09,0.0002692,2]
[379207216,1755186641550,-990.47582442,0.00026935,2]
[379207217,1755186641561,-2740.0,0.00026938,7]
[379207218,1755186641571,-2740.0,0.00026944,7]
[379207219,1755186641581,-724.07815596,0.00026949,2]
[379207220,1755186641591,-935.91,0.00026986,2]
[379207221,1755186641602,-156.0,0.00027,7]
[379207222,1755186641612,-300.59050193,0.00027,2]
[379207223,1755186641623,-2740.0,0.00027003,2]
[379207224,1755186641633,-575.0,0.0002703,6]
[379207225,1755186641644,-1035.94028849,0.00027049,2]
[379207226,1755186641654,-23885.59,0.000271,14]
[379207227,1755186641664,-1006.58,0.000271,2]
[379207228,1755186641674,-23685.1873131,0.00027112,2]
[379207229,1755186641684,-2840.3,0.00027123,14]
[379207230,1755186641695,-300.0,0.00027123,2]
[379207231,1755186641705,-349.9,0.00027123,2]
[379207232,1755186641715,-165.79,0.00027123,2]
[379207233,1755186641726,-274.77000692,0.00027125,2]
[379207234,1755186641737,-1081.40475256,0.00027163,2]
[379207235,1755186641747,-11842.5936565,0.00027163,2]
[379207236,1755186641757,-600.0,0.00027166,2]
[379207237,1755186641767,-151.0,0.00027166,2]
[379207238,1755186641777,-158.96173231,0.00027166,2]
[379207239,1755186641789,-151.0,0.00027166,2]
[379207240,1755186641799,-175.11159332,0.00027178,14]
[379207241,1755186641809,-1000.0,0.00027182,2]
[379207242,1755186641819,-1000.0,0.00027182,2]
[379207243,1755186641829,-396668.89397874,0.00027183,2]
[379207244,1755186641839,-228.5,0.00027189,2]
[379207245,1755186641849,-760.45825761,0.00027232,2]
[379207246,1755186641859,-4949.0,0.00027242,7]
[379207247,1755186641869,-302.01,0.0002726,2]
[379207248,1755186641879,-1000.0,0.00027285,2]
[379207249,1755186641889,-34532.0512,0.00027297,2]
[379207250,1755186641899,-1500.0,0.00027297,2]
[379207251,1755186641909,-1000.0,0.00027297,2]
[379207252,1755186641919,-158.74915512,0.00027297,2]
[379207253,1755186641930,-1136.10695674,0.00027297,2]
[379207254,1755186641940,-164.06346402,0.00027297,2]
[379207255,1755186641950,-592.19021026,0.00027297,2]
[379207256,1755186641961,-1006.53,0.000273,2]
[379207257,1755186641971,-2740.0,0.00027309,2]
[379207258,1755186641982,-2740.0,0.00027312,2]
[379207259,1755186641992,-3023.0,0.00027322,2]
[379207260,1755186642003,-724.07815596,0.00027329,2]
[379207261,1755186642013,-803.2149468,0.00027349,2]
[379207262,1755186642024,-190310.13,0.00027364,2]
[379207263,1755186642036,-500.0,0.00027373,2]
[379207264,1755186642046,-500.0,0.00027373,2]
[379207265,1755186642056,-500.0,0.00027373,2]
[379207266,1755186642066,-172.49531556,0.00027373,2]
[379207267,1755186642077,-500.0,0.00027373,2]
[379207268,1755186642087,-500.0,0.00027373,2]
[379207269,1755186642098,-500.0,0.00027373,2]
[379207270,1755186642108,-500.0,0.00027373,2]
[379207271,1755186642119,-500.0,0.00027373,2]
[379207272,1755186642129,-500.0,0.00027373,2]
[379207273,1755186642139,-539.58967048,0.00027373,2]
[379207274,1755186642150,-159.53260958,0.00027373,2]
[379207275,1755186642160,-500.0,0.00027373,2]
[379207276,1755186642171,-168.26151672,0.00027373,2]
[379207277,1755186642181,-500.0,0.00027373,2]
[379207278,1755186642192,-500.0,0.00027373,2]
[379207279,1755186642202,-502.91827005,0.00027373,2]
[379207280,1755186642212,-502.65686821,0.00027373,2]
[379207281,1755186642223,-500.0,0.00027373,2]
[379207282,1755186642233,-500.0,0.00027373,2]
[379207283,1755186642244,-500.0,0.00027373,2]
[379207284,1755186642255,-500.0,0.00027373,2]
[379207285,1755186642267,-500.0,0.00027373,2]
[379207286,1755186642278,-500.0,0.00027373,2]
[379207287,1755186642289,-500.0,0.00027373,2]
[379207288,1755186642299,-500.0,0.00027373,2]
[379207289,1755186642310,-500.0,0.00027373,2]
[379207290,1755186642320,-500.0,0.00027373,2]
[379207291,1755186642331,-500.0,0.00027373,2]
[379207292,1755186642341,-500.0,0.00027373,2]
[379207293,1755186642583,-158.74915512,0.00027375,2]
[379207294,1755186642594,-3797.0,0.00027377,7]
[379207295,1755186642605,-600.0,0.00027379,2]
[379207296,1755186642615,-600.0,0.00027379,2]
[379207297,1755186642626,-600.0,0.00027379,2]
[379207298,1755186642637,-600.0,0.00027379,2]
[379207299,1755186642648,-600.0,0.00027379,2]
[379207300,1755186642659,-600.0,0.00027379,2]
[379207301,1755186642669,-200.0,0.00027382,2]
[379207302,1755186642680,-155.51,0.00027385,2]
[379207303,1755186642691,-484.111,0.0002739,16]
[379207304,1755186642702,-10054.898,0.0002739,16]
[379207305,1755186642713,-312.78207855,0.00027396,2]
[379207306,1755186642723,-515.91966059,0.00027397,2]
[379207307,1755186642734,-400.0,0.00027397,2]
[379207309,1755186642745,-400.0,0.00027397,2]
[379207311,1755186642755,-400.0,0.00027397,2]
[379207313,1755186642766,-400.0,0.00027397,2]
[379207315,1755186642776,-400.0,0.00027397,2]
[379207316,1755186642789,-500.0,0.00027397,2]
[379207317,1755186642800,-400.0,0.00027397,2]
[379207318,1755186642811,-400.0,0.00027397,2]
[379207319,1755186642822,-400.0,0.00027397,2]
[379207320,1755186642832,-541.09,0.00027397,2]
[379207321,1755186642843,-400.0,0.00027397,2]
[379207322,1755186642855,-400.0,0.00027397,2]
[379207323,1755186642865,-400.0,0.00027397,2]
[379207324,1755186642875,-400.0,0.00027397,2]
[379207325,1755186642886,-400.0,0.00027397,2]
[379207326,1755186642896,-755.55,0.00027397,2]
[379207327,1755186642907,-400.0,0.00027397,2]
[379207328,1755186642918,-400.0,0.00027397,2]
[379207329,1755186642929,-400.0,0.00027397,2]
[379207330,1755186642941,-400.0,0.00027397,2]
[379207331,1755186642952,-400.0,0.00027397,2]
[379207332,1755186642962,-400.0,0.00027397,2]
[379207333,1755186642972,-400.0,0.00027397,2]
[379207334,1755186642983,-730.52,0.00027397,2]
[379207335,1755186642994,-874.56,0.00027397,2]
[379207336,1755186643004,-400.0,0.00027397,2]
[379207337,1755186643015,-400.0,0.00027397,2]
[379207338,1755186643026,-463.78,0.00027397,2]
[379207339,1755186643038,-400.0,0.00027397,2]
[379207340,1755186643049,-400.0,0.00027397,2]